[Event "Rapid Shavuot-A 2023"]
[Site "Ramat Gan"]
[Date "2023.05.25"]
[Round "2.11"]
[White "Levitan, Tal"]
[Black "Hasanov, Evyatar"]
[Result "1-0"]
[ECO "D42"]
[WhiteElo "2328"]
[BlackElo "1850"]
[Annotator "TA"]
[PlyCount "41"]
[EventDate "2023.05.19"]
[EventType "swiss"]
[EventCountry "ISR"]
[SourceTitle "playchess.com"]
[Source "ChessBase"]
[SourceQuality "1"]
[TimeControl "900+5"]

{[%evp 28,41,20,0,52,15,34,27,68,70,139,145,277,81,966,972]} 1. e4 {[%emt 0:00:05]} c6 {[%emt 0:00:05]} 2. d4 {[%emt 0:00:05]} d5 {[%emt 0:00:05]} 3. exd5 {[%emt 0:00:05]} cxd5 {[%emt 0:00:05]} 4. c4 {[%emt 0:00:06]} Nf6 {[%emt 0:00:05]} 5. Nc3 {[%emt 0:00:05]} e6 {[%emt 0:00:05]} 6. Nf3 {[%emt 0:00:05]} Be7 {[%emt 0:00:05]} 7. cxd5 {[%emt 0:00:05]} Nxd5 {[%emt 0:00:05]} 8. Bd3 {[%emt 0:00:05]} O-O {[%emt 0:00:11]} 9. O-O {[%emt 0:00:05]} Nc6 {[%emt 0:00:05]} 10. Re1 {[%emt 0:00:05]} Nf6 {[%emt 0:00:05]} 11. Bg5 {[%emt 0:00:16]} b6 {[%emt 0:01:34]} 12. a3 {[%emt 0:00:05]} Bb7 {[%emt 0:00:05]} 13. Bc2 {[%emt 0:00:05][%cal Bd3c2,Bc2b1,Bb1a2][%mdl 32]} Rc8 {[%emt 0:00:17]} 14. Qd3 {[%emt 0:00:05]} g6 {[%emt 0:00:05]} 15. Rad1 {[%emt 0:00:40]} a6 {[%emt 0:01:54] D42: Queen's Gambit Declined: Semi-Tarrasch: 5 cxd5 Nxd5 6 e3 Nc6 7 Bd3 .} (15... Na5 $11) 16. Bb1 {[%emt 0:01:46]} (16. Bb3 $5 {[%cal Rg5h6]}) 16... b5 {[%emt 0:01:05]} (16... Nd5 {seems wilder.} 17. Nxd5 Bxg5 18. Nxb6 Nb4) 17. Ba2 {[%emt 0:00:05]} Na5 {[%emt 0:03:42]} 18. Ne5 {[%emt 0:00:05] [#] Inhibits Nc4.} Kg7 $146 {[%emt 0:03:01] Against Bh6+} (18... Nc4 $14 19. Bxc4 bxc4 20. Nxc4 Nd5 21. Bxe7 Nxe7) ({Predecessor:} 18... Nd5 19. Bh6 Re8 20. Qh3 Bf6 21. Ne4 Bg7 22. Bxg7 Kxg7 23. Nxf7 Kxf7 24. Qxh7+ {1-0 Kobalia,M (2623)-Rozum,I (2539) RUS-ch blitz 2015 (1)}) 19. Qh3 $16 {[%emt 0:00:40] White is much more active.} h5 {[%emt 0:00:30] [#]} (19... Nc4 $16) 20. Qe3 $2 {[%emt 0:01:35]} (20. d5 $1 $18 {[%cal Rd5e6]} exd5 21. Nd7 {[%mdl 64] Pin}) 20... Rh8 $2 {[%emt 0:00:23][%mdl 8192] [#]} (20... Ng8 $16 21. h4 (21. Nxf7 Rxf7 22. Bxe7 Rxe7 $17) 21... Nc4 22. Nxc4 bxc4) 21. Nxf7 $1 {[%emt 0:00:11][%mdl 576] Double Attack. Black did not feel at home in the position after the opening.   Weighted Error Value: White=0.38/Black=0.75} 1-0

[Event "Rapid Shavuot-A 2023"]
[Site "Ramat Gan"]
[Date "2023.05.25"]
[Round "2.12"]
[White "Hasson Shreger, Shalev"]
[Black "Kochavi, Ori"]
[Result "0-1"]
[ECO "A16"]
[WhiteElo "1899"]
[BlackElo "2423"]
[Annotator "TA"]
[PlyCount "74"]
[EventDate "2023.05.19"]
[EventType "swiss"]
[EventCountry "ISR"]
[SourceTitle "playchess.com"]
[Source "ChessBase"]
[SourceQuality "1"]
[TimeControl "900+5"]

{[%evp 14,74,35,36,40,0,0,-9,-8,-42,-38,-35,-36,-63,-8,-34,-33,-66,-66,-83,-72,-77,-77,-83,-102,-102,-54,-200,-215,-283,-282,-495,-472,-476,-481,-495,-480,-520,-515,-526,-220,-875,-887,-887,-882,-887,-887,-860,-861,-942,-848,-820,-763,-865,-848,-1832,-1866,-1595,-1499,-1780,-1719,-1182,-1085]} 1. e4 {[%emt 0:00:06]} c6 {[%emt 0:00:00]} 2. c4 {[%emt 0:00:03]} d5 {[%emt 0:00:01]} 3. cxd5 {[%emt 0:00:03]} cxd5 {[%emt 0:00:02]} 4. exd5 {[%emt 0:00:01]} Nf6 {[%emt 0:00:01]} 5. Nc3 {[%emt 0:00:03]} g6 {[%emt 0:00:07]} 6. g3 {[%emt 0:00:08]} Bg7 {[%emt 0:00:01]} 7. Bg2 {[%emt 0:00:01]} O-O {[%emt 0:00:02]} 8. Nge2 {[%emt 0:00:13]} Na6 {[%emt 0:00:14] A16: English Opening: 1...Nf6 with ...d5.} 9. d4 {[%emt 0:00:16]} Nb4 {[%emt 0:00:35] [#]} 10. Bg5 $146 {[%emt 0:01:22]} (10. O-O $5 {[%cal Rd1b3]}) ({Predecessor:} 10. O-O Nbxd5 11. Re1 b6 12. Nf4 Bb7 13. Qb3 e6 14. Nd3 Rb8 15. Ne5 Ne7 16. Bg5 Bxg2 17. Kxg2 {0-1 Matinian,N (2435)-Yen,W (2056) Titled Tuesday intern op 06th Sep Early blitz 2022 (4)}) 10... Nbxd5 {[%emt 0:00:12] The position is equal.} 11. Bxf6 {[%emt 0:00:09]} Nxf6 {[%emt 0:00:02]} 12. O-O {[%emt 0:00:02]} Rb8 {[%emt 0:00:19]} 13. a4 {[%emt 0:01:12]} b6 {[%emt 0:00:32]} (13... h5 $15) 14. b4 {[%emt 0:00:32]} Bb7 {[%emt 0:00:11]} 15. Bxb7 {[%emt 0:00:28]} Rxb7 {[%emt 0:00:00]} 16. a5 {[%emt 0:00:05]} b5 {[%emt 0:01:00]} 17. a6 {[%emt 0:00:29]} Rb6 {[%emt 0:00:01]} 18. Qb3 {[%emt 0:01:17]} Qd7 {[%emt 0:00:22]} 19. Rfd1 {[%emt 0:00:40]} Bh6 {[%emt 0:00:33]} ({Black should play} 19... Rc8 $17) 20. f4 {[%emt 0:02:01] This costs White the game.} ({Better is} 20. d5 $1 $15) 20... Bg7 $19 {[%emt 0:00:37]} ({Not} 20... Qh3 21. Ra2 $17) 21. Qb1 {[%emt 0:02:31]} Qh3 {[%emt 0:01:03] ...Ng4 is the strong threat.} 22. Nc1 $2 {[%emt 0:02:07]} (22. Qd3) 22... Ng4 {[%emt 0:00:15]} 23. Ra2 {[%emt 0:01:19]} Ne3 {[%emt 0:00:37][%cal Og7d4] aiming for ...Bxd4!} 24. Nb3 {[%emt 0:00:12]} Nxd1 25. Qxd1 {[%emt 0:00:01]} Rd8 {[%emt 0:00:13]} 26. Ne4 {[%emt 0:00:36]} Re6 {[%emt 0:00:48]} (26... Qe6 $142 27. Re2 Qc4) 27. Nec5 {[%emt 0:01:23] [#]} (27. Ng5 Qf5 28. Nxe6 Qxe6 29. Re2 Qxa6 30. Rxe7) 27... Bxd4+ $1 {[%emt 0:00:24][%mdl 512] Black is clearly winning.} 28. Nxd4 {[%emt 0:00:00] [#]} Rxd4 $1 {[%emt 0:00:02][%mdl 576] Double Attack} 29. Rd2 {[%emt 0:00:00]} Rxd2 {[%emt 0:00:08]} 30. Qxd2 {[%emt 0:00:00][%mdl 4096] Endgame KQR-KQN} Rd6 {[%emt 0:00:01]} 31. Qe2 {[%emt 0:00:00]} Rd4 {[%emt 0:00:21] Threatens to win with ...Qf5.} 32. Nd3 {[%emt 0:00:04]} Qd7 {[%emt 0:00:29]} 33. Nf2 {[%emt 0:00:09]} Rxb4 {[%emt 0:00:06] And now ...Rb1+ would win.} 34. Qe5 {[%emt 0:00:07]} Rb1+ {[%emt 0:00:08]} 35. Kg2 {[%emt 0:00:01]} Qc6+ {[%emt 0:00:00]} 36. Kh3 {[%emt 0:00:09]} Qe6+ {[%emt 0:00:03]} 37. Qxe6 {[%emt 0:00:01]} fxe6 {[%emt 0:00:01] Weighted Error Value: White=0.88/Black=0.24 (precise)} 0-1

[Event "Rapid Shavuot-A 2023"]
[Site "Ramat Gan"]
[Date "2023.05.25"]
[Round "2.13"]
[White "Zakin, Ilay"]
[Black "Iliaguev, Nisim"]
[Result "0-1"]
[ECO "B15"]
[WhiteElo "1724"]
[BlackElo "2402"]
[Annotator "TA"]
[PlyCount "104"]
[EventDate "2023.05.19"]
[EventType "swiss"]
[EventCountry "ISR"]
[SourceTitle "playchess.com"]
[Source "ChessBase"]
[SourceQuality "1"]
[TimeControl "900+5"]

{[%evp 19,104,14,31,0,0,0,20,19,79,56,52,33,32,45,82,51,83,70,79,65,111,141,161,152,233,235,221,227,196,0,0,0,197,178,400,210,200,0,0,-37,-49,-106,-31,-28,-14,-88,0,-171,-169,-149,-170,-144,-154,-387,-222,-863,-877,-793,-641,-641,-618,-619,-621,-968,-706,-682,-654,-688,-570,-600,-589,-29969,-29971,-29976,-29977,-29977,-29978,-29978,-29979,-29979,-29979,-29979,-29980,-29980,-29980,-29978,-29978]} 1. e4 {[%emt 0:00:02]} c6 {[%emt 0:00:00]} 2. d4 {[%emt 0:00:02]} d5 {[%emt 0:00:01]} 3. Nc3 {[%emt 0:00:02]} dxe4 {[%emt 0:00:01]} 4. Nxe4 {[%emt 0:00:01]} Nf6 {[%emt 0:00:01]} 5. Nxf6+ {[%emt 0:00:02]} exf6 {[%emt 0:00:02]} 6. c3 {[%emt 0:00:03]} Bd6 {[%emt 0:00:01]} 7. Bd3 {[%emt 0:00:01]} O-O {[%emt 0:00:01]} 8. Qc2 {[%emt 0:00:01]} Re8+ {[%emt 0:00:01]} 9. Ne2 {[%emt 0:00:01]} h6 {[%emt 0:00:01]} 10. Be3 {[%emt 0:15:40]} Nd7 $1 {The main line 10...Nd7 scores better than 10...Be6.} 11. O-O-O {[%emt 0:00:00] B15: Caro-Kann: 3 Nc3: 3...g6 and 3...dxe4 4 Nxe4 Nf6 5 Nxf6+ exf6.} Nf8 {[%emt 0:00:04]} 12. Kb1 {[%emt 0:00:00]} Bg4 {[%emt 0:00:16]} 13. h3 {[#] The position is equal.} Bxe2 $146 {[%emt 0:00:49]} (13... Be6 $11) ({Predecessor:} 13... Bh5 14. g4 Bg6 15. Bf5 Qc7 16. h4 Rad8 17. c4 Qd7 18. d5 cxd5 19. Rxd5 Bxf5 20. gxf5 {1-0 Richter,G (2085)-Hohn,A (1908) Berlin Kreuzberg op 2015 (7)}) 14. Qxe2 {[%emt 0:00:00]} Bf4 $1 {[%emt 0:00:11]} 15. Qf3 {[%emt 0:00:00]} (15. h4 {feels hotter.} Qd5 16. Rhg1 Rad8 17. g3) 15... Bxe3 {[%emt 0:00:05]} 16. fxe3 {[%emt 0:00:30]} a5 {[%emt 0:00:16][%cal Ba7a5,Ba5a4,Ba4a3][%mdl 32]} 17. g4 {[%emt 0:00:00]} a4 {[%emt 0:00:16]} 18. h4 {[%emt 0:00:10]} a3 {[%emt 0:00:15]} 19. b3 {[%emt 0:00:00][%cal Bb2b3,Bb3b4][%mdl 32]} Qa5 (19... Ne6 $14 {is more appropriate.}) 20. b4 {[%emt 0:00:00]} Qd5 21. e4 $1 {[%emt 0:00:15]} Qd8 {[%emt 0:14:29] [#]} (21... Qe6 $16) 22. g5 $1 $18 {[%emt 0:00:00][%mdl 512]} fxg5 {[%emt 0:00:00]} 23. hxg5 {[%emt 0:00:00]} Qxg5 {[%emt 0:00:00]} 24. Rdg1 $2 {[%emt 0:00:15]} (24. Rhg1 $18 Qh4 25. Rdf1) 24... Qd2 $11 {[%emt 0:00:00][%csl Ga3][%cal Rd2b2]} 25. Bc2 {[%emt 0:00:00] Hoping for Rg2.} Ng6 $2 {[%emt 0:00:00]} (25... Rxe4 $1 $11 {and Black stays safe.} 26. Qxe4 Qxc3 27. Rxg7+ {[%mdl 64] Decoy} Kxg7 28. Qe5+ Kg8 29. Rg1+ Ng6 30. Rxg6+ fxg6 31. Qe6+ Kf8 32. Qd6+ Kg8 33. Qxg6+ Kf8 34. Qf6+ Kg8 35. Qg6+ (35. Bb3+ Kh7 $11) 35... Kf8 36. Qf6+ Kg8 37. Bb3+ Kh7 38. Qf7+ Kh8 39. Qf6+ Kh7 40. Qf7+ Kh8 41. Qf6+ Kh7) 26. Rf1 $18 {[%emt 0:00:10]} f5 {[%emt 0:00:00]} (26... Rf8 27. Rhg1 Qh2) 27. Rf2 {[%emt 0:00:00]} ({Stronger than} 27. Qxf5 Qxc3 28. Qf7+ Kh8 $11) (27. exf5 Nf4 28. Rd1 (28. Qxf4 Re1+ {[%mdl 64] Deflection} 29. Rxe1 Qxf4 $17) (28. f6 Re2 $11) 28... Qe3 29. Bb3+ Kf8 $11) (27. Qg3 $142 Rxe4 28. Qxg6) 27... Qg5 {[%emt 0:00:00]} 28. exf5 {[%emt 0:00:00]} ({Don't take} 28. Qxf5 Qxf5 29. exf5 Nh8) (28. Qh3 $18) 28... Re3 $1 $11 {[%emt 0:00:00]} 29. Qd1 {[%emt 0:00:00]} Nf4 {[%emt 0:00:00] ...Rae8 would be deadly.} 30. Rg1 {[%emt 0:00:00]} (30. Bb3+ $1 $15 Nd5 31. Qc1) 30... Rg3 {[%emt 0:00:00] Black has more active pieces.} (30... Qh4 $17 31. Qd2 Rae8) 31. Rxg3 $1 $15 {[%emt 0:00:00]} Qxg3 {[%emt 0:00:00]} 32. Bb3+ {[%emt 0:00:09] [#]} (32. Rf3 $11 Qh4 33. Bb3+ Nd5 34. Qe2) 32... Kh8 {[%emt 0:00:00]} (32... Nd5 $1 $17 33. Qd2 Kh7 34. Bxd5 Qg1+ 35. Kc2 cxd5) 33. Rf3 {[%emt 0:00:14]} (33. Qf3 $11 {and White has nothing to worry.} Qxf3 34. Rxf3) 33... Qg2 $40 {[%emt 0:00:00][%csl Ga3][%cal Rg2b2][%mdl 128] White is in trouble.} 34. Bc2 {[%emt 0:00:07]} Nd5 {[%emt 0:00:00] aiming for ...Re8.} 35. f6 {[%emt 0:00:09]} Nxf6 {[%emt 0:00:11]} ({Not} 35... gxf6 36. Qd3 Qg1+ 37. Rf1 $15) 36. Qd3 $2 {[%emt 0:00:02] [#]} (36. Qf1 $17 Qxf1+ 37. Rxf1) 36... Ne4 {[%emt 0:00:30]} (36... Re8 $142 $1 {[%mdl 512] ( -> ...Re1+)} 37. Rf1 Re2) 37. Re3 {[%emt 0:00:05]} (37. Kc1 Re8 38. Re3) 37... Qg1+ $19 {[%emt 0:00:10]} 38. Bd1 {[%emt 0:00:03] [#]} Nxc3+ $1 {[%emt 0:00:06][%mdl 576] Deflection} 39. Qxc3 {[%emt 0:00:08] Threatens to win with Re1.} Qxd1+ {[%emt 0:00:01][%mdl 4096] Endgame KQR-KQR} 40. Qc1 {[%emt 0:00:01]} Qxd4 {[%emt 0:00:03]} 41. Rxa3 {[%emt 0:00:09]} Qxb4+ {[%emt 0:00:01]} 42. Rb3 {[%emt 0:00:01]} Qe4+ {[%emt 0:00:01]} 43. Ka1 {[%emt 0:00:03]} Qe5+ {[%emt 0:00:03]} 44. Kb1 {[%emt 0:00:01]} Rf8 {[%emt 0:00:13] Strongly threatening ...Rf2.} 45. a4 {[%emt 0:00:16]} Qe4+ {[%emt 0:00:02] Black mates.} 46. Ka2 {[%emt 0:00:03]} Qxa4+ {[%emt 0:00:02]} 47. Ra3 {[%emt 0:00:01]} Rf2+ {[%emt 0:00:02]} 48. Ka1 {[%emt 0:00:03]} Qd4+ {[%emt 0:00:01]} 49. Kb1 {[%emt 0:00:01]} Qe4+ {[%emt 0:00:08]} 50. Ka1 {[%emt 0:00:02]} Qe5+ {[%emt 0:00:01]} 51. Kb1 {[%emt 0:00:19]} Qf5+ {[%emt 0:00:01]} 52. Ka1 {[%emt 0:00:02]} Rf1 {[%emt 0:00:01] Quite a comeback for Black.   Weighted Error Value: White=0.84/Black=0.50} 0-1

[Event "Rapid Shavuot-A 2023"]
[Site "Ramat Gan"]
[Date "2023.05.25"]
[Round "2.14"]
[White "Adar, Idan"]
[Black "Mordechai, Hanan"]
[Result "0-1"]
[ECO "D45"]
[WhiteElo "2085"]
[BlackElo "2366"]
[Annotator "TA"]
[PlyCount "126"]
[EventDate "2023.05.19"]
[EventType "swiss"]
[EventCountry "ISR"]
[SourceTitle "playchess.com"]
[Source "ChessBase"]
[SourceQuality "1"]
[TimeControl "900+5"]

{[%evp 14,126,12,-17,17,9,11,9,14,-82,-56,-39,-47,-83,-28,-172,-163,-184,-76,-72,-74,-89,-90,-79,41,-98,-108,-644,-637,-610,-623,-586,-499,-775,-785,-787,-785,-798,-12,-24,-34,-24,0,-127,-110,-110,-121,-111,-121,-126,-124,-127,-131,-128,-117,-145,-102,-248,-237,-214,-192,-204,-189,-220,-85,-85,-84,-102,-102,-201,-204,-193,-197,-191,-188,-283,-279,-296,-266,-300,-282,-337,-293,-370,-366,-29966,-29968,-29966,-8,-29969,-29971,-29970,-29970,-29952,-2089,-29975,-29976,-29976,-29977,-29983,-29984,-29984,-29985,-29986,-29987,-29988,-29989,-29989,-29990,-29990,-29991,-29991,-29991,-29991,-29992]} 1. d4 {[%emt 0:00:01]} d5 {[%emt 0:00:10]} 2. c4 {[%emt 0:00:03]} c6 {[%emt 0:00:00]} 3. Nc3 {[%emt 0:00:02]} Nf6 {[%emt 0:00:01]} 4. e3 {[%emt 0:00:03]} e6 {[%emt 0:00:02]} 5. Nf3 {[%emt 0:00:02]} Nbd7 {[%emt 0:00:03]} 6. Qc2 {[%emt 0:00:02]} Bd6 {[%emt 0:00:05]} 7. g4 {[%emt 0:00:03]} h6 {[%emt 0:00:13]} 8. Rg1 {[%emt 0:00:04] 8.Rg1 scores better than 8.Bd2.} dxc4 {[%emt 0:00:07] D45: Semi-Slav: 5 e3.} 9. Bxc4 {[%emt 0:00:04]} b5 {[%emt 0:02:37]} 10. Be2 {[%emt 0:01:32]} Bb7 {[%emt 0:00:35] The position is equal.} 11. g5 {[%emt 0:01:04]} (11. e4 $11 {keeps the balance.} e5 12. h4) 11... hxg5 $17 {[%emt 0:00:05] [#]} 12. Nxg5 $146 {[%emt 0:00:26]} ({Predecessor:} 12. Rxg5 Rc8 13. Rxg7 Kf8 14. Rg1 b4 15. Ne4 Nxe4 16. Qxe4 Nf6 17. Qd3 c5 18. b3 {½-½ Schoppen,C (2464)-Van Wely,L (2604) Hilversum op 2019 (4)}) 12... Qe7 {[%emt 0:00:35]} 13. Nge4 {[%emt 0:01:03]} Rxh2 {[%emt 0:00:57]} (13... b4 $17 14. Nxf6+ Nxf6) 14. Rxg7 {[%emt 0:02:18]} (14. Nxd6+ $11 {and White has nothing to worry.} Qxd6 15. Bd2) 14... Rh1+ $19 {[%emt 0:01:58]} 15. Bf1 {[%emt 0:02:28]} b4 {[%emt 0:00:10]} (15... Kf8 $1 $19 {[%cal Rf8g7]} 16. Rg5 c5) 16. Nxd6+ {[%emt 0:00:02]} Qxd6 {[%emt 0:00:02]} 17. Ne2 {[%emt 0:00:14]} ({Don't play} 17. Ne4 Qf8 18. Nxf6+ Nxf6 $17) 17... Kf8 {[%emt 0:00:29]} 18. Rg5 {[%emt 0:01:07]} Rc8 {[%emt 0:00:41]} ({Black should try} 18... Ba6 $17 {[%cal Oc6c5]} 19. Rg1 Rxg1 20. Nxg1 Bxf1 21. Kxf1 c5) 19. Bd2 {[%emt 0:04:21]} (19. e4 $14 Qh2 20. Qd3 (20. Ng3 Ba6 $17)) 19... c5 $17 {[%emt 0:00:05][%cal Bc6c5,Bc5d4][%mdl 32]} 20. Rc1 $2 {[%emt 0:00:50][%mdl 8192]} (20. Ng3 $17 Rg1 21. f4) 20... Ne4 {[%emt 0:01:59]} 21. Rg1 {[%emt 0:00:41]} Rxg1 22. Nxg1 {[%emt 0:00:01]} cxd4 {[%emt 0:00:22][%mdl 64] Discovered Attack} 23. Qd1 {[%emt 0:00:17]} (23. Qxc8+ $142 Bxc8 24. Rxc8+ Kg7 25. Nf3) 23... Rxc1 $19 {[%emt 0:01:10]} 24. Bxc1 {[%emt 0:00:09]} Qh2 {[%emt 0:03:14][%csl Ge4,LRf2,LRg1][%cal Rh2f2]} 25. Nh3 {[%emt 0:00:01]} e5 $2 {[%emt 0:00:50]} ({Black should play} 25... Qh1 $19 {White must now prevent ...Ba6.} 26. Qe2 d3 27. Qxd3 Nec5 28. Qd6+ Ke8) 26. exd4 $11 {[%emt 0:00:07]} Qh1 $40 {[%emt 0:00:18][%mdl 128] Black has some attack.} 27. Qe2 {[%emt 0:00:08] Inhibits Ba6.} exd4 {[%emt 0:00:09] Threatens to win with ...Ne5.} 28. Bf4 {[%emt 0:00:06] Wards off Ne5} (28. f3 $11 {remains equal.} d3 29. Qxd3) 28... Ndc5 $1 $17 {[%emt 0:00:07]} 29. f3 {[%emt 0:00:04]} Ba6 {[%emt 0:00:10] Black has more active pieces.} 30. Qg2 {[%emt 0:00:05]} Nd3+ {[%emt 0:00:03]} 31. Kd1 {[%emt 0:00:06] [#]} Nxb2+ $1 {[%emt 0:00:13][%mdl 576] Deflection. Excellent horsemanship.} 32. Kc2 {[%emt 0:00:04]} Qxf1 {[%emt 0:00:05]} 33. Qxf1 {[%emt 0:00:05]} Bxf1 {[%emt 0:00:02]} 34. fxe4 {[%emt 0:00:03][%mdl 4096] Endgame KBN-KBN} Nc4 {[%emt 0:00:08]} 35. Nf2 {[%emt 0:00:05]} (35. Kb3 $17) 35... Ke7 {[%emt 0:00:03]} 36. Nd3 {[%emt 0:00:06]} a5 {[%emt 0:00:05]} 37. Nc5 {[%emt 0:00:01]} Kf6 {[%emt 0:00:06]} 38. Nb3 {[%emt 0:00:07]} Ke6 {[%emt 0:00:07]} (38... d3+ $19 {is more deadly.} 39. Kc1 Bg2) 39. Nxd4+ {[%emt 0:00:02] [#]} Kd7 $1 {[%emt 0:00:01]} 40. Kb3 {[%emt 0:00:06] [#]} Nb6 $1 {[%emt 0:00:05]} 41. Nf5 {[%emt 0:00:09]} (41. Kc2 $17) 41... Bc4+ $19 {[%emt 0:00:02]} 42. Kb2 {[%emt 0:00:02]} Na4+ {[%emt 0:00:01]} 43. Ka1 {[%emt 0:00:02]} Nc3 {[%emt 0:00:01][%csl LRa2,LRe4]} 44. Be5 {[%emt 0:00:10]} (44. a3 {was necessary.}) 44... Nxe4 {[%emt 0:00:06] And now ...Ke6 would win.} (44... Nxa2 $2 {loses.} 45. Nd6 Be6 46. Nb7 $19) 45. Ne3 {[%emt 0:00:05]} Be6 {[%emt 0:00:02]} 46. Kb2 {[%emt 0:00:04]} Kc6 {[%emt 0:00:02]} 47. a3 {[%emt 0:00:01]} b3 {[%emt 0:00:07]} 48. a4 {[%emt 0:00:10]} Kc5 {[%emt 0:00:03]} 49. Bc3 {[%emt 0:00:03]} (49. Ka3 $19) 49... Nxc3 {[%emt 0:00:04]} 50. Kxc3 {[%emt 0:00:01] KB-KN} f5 $2 {[%emt 0:00:00]} (50... f6 {mates} 51. Ng2 Kd6 52. Nf4 f5 53. Ng6 Bd5 54. Nf4 Ke5 55. Ne2 f4 56. Ng1 Ke4 57. Ne2 Ke3 58. Nd4 f3 59. Nxf3 Kxf3 60. Kd3 Kf4 61. Kd2 Ke4 62. Kc3 Ke3 63. Kb2 Kd3 64. Ka3 Kc4 65. Kb2 Kb4 66. Kc1 Kc3 67. Kd1 b2 68. Ke2 b1=Q 69. Kf2 Qd3 70. Ke1 Qd2+ 71. Kf1 Kd3 72. Kg1 Qg2#) 51. Ng2 $2 {[%emt 0:00:04][%mdl 8192]} (51. Nxf5 $11 Bxf5 52. Kxb3) 51... Kd6 {[%emt 0:00:06]} 52. Nf4 {[%emt 0:00:04]} Bf7 {[%emt 0:00:13]} 53. Nd3 {[%emt 0:00:03]} Bg8 {[%emt 0:00:05] ( -> ...Bf7)} 54. Nf4 {[%emt 0:00:06]} Ke5 {[%emt 0:00:03] Black mates.} 55. Nd3+ {[%emt 0:00:01]} Ke4 {[%emt 0:00:04]} 56. Nc5+ {[%emt 0:00:02]} Ke3 {[%emt 0:00:02]} 57. Nd3 {[%emt 0:00:15]} f4 {[%emt 0:00:04]} 58. Nxf4 {[%emt 0:00:07]} Kxf4 {[%emt 0:00:02] KB-KP} 59. Kb2 {[%emt 0:00:01]} Ke3 {[%emt 0:00:41]} 60. Ka3 {[%emt 0:00:05]} Kd4 {[%emt 0:00:00]} 61. Kb2 {[%emt 0:00:01]} Kc4 {[%emt 0:00:00]} 62. Ka3 {[%emt 0:00:02]} Bf7 {[%emt 0:00:00]} 63. Kb2 {[%emt 0:00:01]} Kb4 {[%emt 0:00:00] Artfully played by Mordechai.   Weighted Error Value: White=0.69/Black=0.39} 0-1